[Event "Titled Tuesday Blitz November 22 Early 2022"]
[White "Papasimakopoulos, Alexandros"]
[Black "Erdogdu, Mert"]
[WhiteFideId "4244125"]
[BlackFideId "6301495"]
[WhiteElo "2365"]
[BlackElo "2413"]
[Result "1-0"]
[Round "11"]
[TimeControl "180+1"]
[Date "2022.11.22"]
[WhiteClock "0:01:20"]
[BlackClock "0:00:19"]

1. d4 {[%clk 0:02:54]}  d5 {[%clk 0:03:00]} 2. c4 {[%clk 0:02:53]}  e6 {[%clk 0:03:00]} 3. Nc3 {[%clk 0:02:54]}  c5 {[%clk 0:03:01]} 4. cxd5 {[%clk 0:02:53]}  exd5 {[%clk 0:03:02]} 5. Nf3 {[%clk 0:02:53]}  Nc6 {[%clk 0:03:02]} 6. Bg5 {[%clk 0:02:52]}  Be7 {[%clk 0:03:02]} 7. Bxe7 {[%clk 0:02:51]}  Ngxe7 {[%clk 0:03:03]} 8. e3 {[%clk 0:02:48]}  c4 {[%clk 0:03:01]} 9. b3 {[%clk 0:02:48]}  Qa5 {[%clk 0:03:00]} 10. Rc1 {[%clk 0:02:43]}  b5 {[%clk 0:02:59]} 11. bxc4 {[%clk 0:02:40]}  bxc4 {[%clk 0:02:59]} 12. Be2 {[%clk 0:02:38]}  O-O {[%clk 0:02:58]} 13. O-O {[%clk 0:02:37]}  Rb8 {[%clk 0:02:59]} 14. Ne5 {[%clk 0:02:35]}  Bf5 {[%clk 0:02:48]} 15. Bf3 {[%clk 0:02:30]}  Rfd8 {[%clk 0:02:13]} 16. Nxc6 {[%clk 0:02:29]}  Nxc6 {[%clk 0:02:12]} 17. Re1 {[%clk 0:02:28]}  Bd3 {[%clk 0:02:07]} 18. h3 {[%clk 0:02:27]}  Rb2 {[%clk 0:02:05]} 19. Be2 {[%clk 0:01:59]}  Nb4 {[%clk 0:02:00]} 20. Bf3 {[%clk 0:01:55]}  h6 {[%clk 0:01:54]} 21. Qa4 {[%clk 0:01:50]}  Rxa2 {[%clk 0:01:18]} 22. Qxa5 {[%clk 0:01:47]}  Rxa5 {[%clk 0:01:19]} 23. Ra1 {[%clk 0:01:47]}  Rxa1 {[%clk 0:01:15]} 24. Rxa1 {[%clk 0:01:48]}  Rd7 {[%clk 0:01:09]} 25. Ra5 {[%clk 0:01:46]}  a6 {[%clk 0:00:55]} 26. Bxd5 {[%clk 0:01:44]}  Nxd5 {[%clk 0:00:46]} 27. Nxd5 {[%clk 0:01:45]}  Rb7 {[%clk 0:00:42]} 28. Rxa6 {[%clk 0:01:38]}  Rb1+ {[%clk 0:00:37]} 29. Kh2 {[%clk 0:01:38]}  Rb2 {[%clk 0:00:38]} 30. Kg3 {[%clk 0:01:38]}  Be4 {[%clk 0:00:32]} 31. Nc3 {[%clk 0:01:37]}  Bd3 {[%clk 0:00:31]} 32. Rc6 {[%clk 0:01:33]}  Rc2 {[%clk 0:00:30]} 33. Nd5 {[%clk 0:01:33]}  Be4 {[%clk 0:00:30]} 34. Rc8+ {[%clk 0:01:32]}  Kh7 {[%clk 0:00:30]} 35. Rc5 {[%clk 0:01:30]}  Rc1 {[%clk 0:00:21]} 36. f3 {[%clk 0:01:29]}  Bd3 {[%clk 0:00:20]} 37. Rc7 {[%clk 0:01:22]}  Rc2 {[%clk 0:00:19]} 38. e4 {[%clk 0:01:21]}  Bf1 {[%clk 0:00:19]} 39. Ne3 {[%clk 0:01:21]}  Rc1 {[%clk 0:00:19]} 40. Nxf1 {[%clk 0:01:21]}  Rxf1 {[%clk 0:00:19]} 41. Rxf7 {[%clk 0:01:19]}  Rd1 {[%clk 0:00:20]} 42. d5 {[%clk 0:01:18]}  c3 {[%clk 0:00:21]} 43. Rc7 {[%clk 0:01:19]}  Rd3 {[%clk 0:00:21]} 44. Kf4 {[%clk 0:01:19]}  Kg8 {[%clk 0:00:18]} 45. h4 {[%clk 0:01:19]}  Kf8 {[%clk 0:00:18]} 46. h5 {[%clk 0:01:19]}  Ke8 {[%clk 0:00:18]} 47. Ke5 {[%clk 0:01:19]}  Kd8 {[%clk 0:00:19]} 48. d6 {[%clk 0:01:20]} 1-0


[Site "https://www.chess.com"]

[Event "Titled Tuesday Blitz November 22 Early 2022"]
[White "Petrova, Irina"]
[Black "Al-Tarboush, Ward"]
[WhiteFideId "14124122"]
[BlackFideId "7601450"]
[WhiteElo "2023"]
[BlackElo "2273"]
[Result "0-1"]
[Round "11"]
[TimeControl "180+1"]
[Date "2022.11.23"]
[WhiteClock "0:00:35"]
[BlackClock "0:01:40"]

1. e4 {[%clk 0:03:00]}  c5 {[%clk 0:02:56]} 2. Nf3 {[%clk 0:03:00]}  Nc6 {[%clk 0:02:57]} 3. Bb5 {[%clk 0:03:00]}  e6 {[%clk 0:02:57]} 4. Bxc6 {[%clk 0:03:00]}  bxc6 {[%clk 0:02:58]} 5. O-O {[%clk 0:02:56]}  f6 {[%clk 0:02:51]} 6. e5 {[%clk 0:02:53]}  Qc7 {[%clk 0:02:49]} 7. Re1 {[%clk 0:02:50]}  fxe5 {[%clk 0:02:48]} 8. Nxe5 {[%clk 0:02:51]}  Nf6 {[%clk 0:02:48]} 9. b3 {[%clk 0:02:50]}  Bd6 {[%clk 0:02:43]} 10. Bb2 {[%clk 0:02:50]}  O-O {[%clk 0:02:44]} 11. d3 {[%clk 0:02:47]}  a5 {[%clk 0:02:38]} 12. Nd2 {[%clk 0:02:44]}  a4 {[%clk 0:02:38]} 13. Ndc4 {[%clk 0:02:42]}  Be7 {[%clk 0:02:39]} 14. Ng4 {[%clk 0:02:33]}  d6 {[%clk 0:02:32]} 15. Nxf6+ {[%clk 0:02:25]}  Bxf6 {[%clk 0:02:33]} 16. Bxf6 {[%clk 0:02:25]}  Rxf6 {[%clk 0:02:34]} 17. Qh5 {[%clk 0:02:15]}  e5 {[%clk 0:02:32]} 18. Re3 {[%clk 0:01:48]}  Be6 {[%clk 0:02:30]} 19. Rae1 {[%clk 0:01:43]}  Raf8 {[%clk 0:02:30]} 20. R3e2 {[%clk 0:01:37]}  axb3 {[%clk 0:02:28]} 21. axb3 {[%clk 0:01:37]}  Rh6 {[%clk 0:02:26]} 22. Qg5 {[%clk 0:01:34]}  Rg6 {[%clk 0:02:26]} 23. Qh4 {[%clk 0:01:28]}  Rg4 {[%clk 0:02:25]} 24. Qh5 {[%clk 0:01:24]}  h6 {[%clk 0:02:21]} 25. h3 {[%clk 0:00:54]}  Rg5 {[%clk 0:02:19]} 26. Qh4 {[%clk 0:00:53]}  Rf4 {[%clk 0:02:18]} 27. g4 {[%clk 0:00:51]}  Bxg4 {[%clk 0:02:18]} 28. hxg4 {[%clk 0:00:40]}  Rfxg4+ {[%clk 0:02:19]} 29. Qxg4 {[%clk 0:00:40]}  Rxg4+ {[%clk 0:02:20]} 30. Kf1 {[%clk 0:00:40]}  Qd7 {[%clk 0:02:14]} 31. Re3 {[%clk 0:00:40]}  Rf4 {[%clk 0:02:09]} 32. R1e2 {[%clk 0:00:38]}  Qe7 {[%clk 0:01:45]} 33. Rg3 {[%clk 0:00:37]}  Qh4 {[%clk 0:01:43]} 34. Nxd6 {[%clk 0:00:35]}  Qxg3 {[%clk 0:01:40]} 0-1


[Site "https://www.chess.com"]

[Event "Titled Tuesday Blitz November 22 Early 2022"]
[White "Pultinevicius, Paulius"]
[Black "Harsh Suresh"]
[WhiteFideId "12809390"]
[BlackFideId "45018464"]
[WhiteElo "2493"]
[BlackElo "2227"]
[Result "0-1"]
[Round "11"]
[TimeControl "180+1"]
[Date "2022.11.22"]
[WhiteClock "0:01:29"]
[BlackClock "0:00:13"]

1. d4 {[%clk 0:02:52]}  Nf6 {[%clk 0:02:56]} 2. c4 {[%clk 0:02:53]}  c5 {[%clk 0:02:55]} 3. d5 {[%clk 0:02:53]}  b5 {[%clk 0:02:56]} 4. cxb5 {[%clk 0:02:53]}  a6 {[%clk 0:02:56]} 5. bxa6 {[%clk 0:02:53]}  Bxa6 {[%clk 0:02:55]} 6. Nf3 {[%clk 0:02:54]}  g6 {[%clk 0:02:54]} 7. g3 {[%clk 0:02:53]}  d6 {[%clk 0:02:51]} 8. Bg2 {[%clk 0:02:50]}  Bg7 {[%clk 0:02:51]} 9. O-O {[%clk 0:02:50]}  O-O {[%clk 0:02:52]} 10. Nc3 {[%clk 0:02:50]}  Nbd7 {[%clk 0:02:51]} 11. Qc2 {[%clk 0:02:46]}  Qa5 {[%clk 0:02:46]} 12. Bd2 {[%clk 0:02:44]}  Rfb8 {[%clk 0:02:45]} 13. h3 {[%clk 0:02:37]}  Nb6 {[%clk 0:02:24]} 14. b3 {[%clk 0:02:35]}  c4 {[%clk 0:02:18]} 15. Nd4 {[%clk 0:02:29]}  Bb7 {[%clk 0:02:06]} 16. Nc6 {[%clk 0:02:13]}  Bxc6 {[%clk 0:02:05]} 17. dxc6 {[%clk 0:02:14]}  cxb3 {[%clk 0:01:49]} 18. Qxb3 {[%clk 0:02:13]}  Nc8 {[%clk 0:01:20]} 19. Qc2 {[%clk 0:02:10]}  Ra7 {[%clk 0:01:15]} 20. Nd5 {[%clk 0:02:06]}  Qc5 {[%clk 0:01:09]} 21. Qxc5 {[%clk 0:02:03]}  dxc5 {[%clk 0:01:10]} 22. c7 {[%clk 0:02:04]}  Rb2 {[%clk 0:01:00]} 23. Rab1 {[%clk 0:01:54]}  Nxd5 {[%clk 0:00:51]} 24. Rxb2 {[%clk 0:01:53]}  Bxb2 {[%clk 0:00:48]} 25. Bxd5 {[%clk 0:01:54]}  Rxc7 {[%clk 0:00:44]} 26. Rb1 {[%clk 0:01:54]}  Be5 {[%clk 0:00:29]} 27. Rb8 {[%clk 0:01:50]}  Kg7 {[%clk 0:00:25]} 28. f4 {[%clk 0:01:42]}  Bd4+ {[%clk 0:00:13]} 29. e3 {[%clk 0:01:42]}  Bf6 {[%clk 0:00:14]} 30. a4 {[%clk 0:01:40]}  c4 {[%clk 0:00:10]} 31. e4 {[%clk 0:01:26]}  c3 {[%clk 0:00:10]} 32. Bc1 {[%clk 0:01:27]}  Bd4+ {[%clk 0:00:09]} 33. Kf1 {[%clk 0:01:27]}  e6 {[%clk 0:00:09]} 34. Bb3 {[%clk 0:01:26]}  Nd6 {[%clk 0:00:10]} 35. Ke2 {[%clk 0:01:23]}  Nxe4 {[%clk 0:00:09]} 36. Kd3 {[%clk 0:01:23]}  Ba7 {[%clk 0:00:05]} 37. Rb5 {[%clk 0:01:13]}  Nxg3 {[%clk 0:00:05]} 38. a5 {[%clk 0:01:11]}  Nf5 {[%clk 0:00:05]} 39. a6 {[%clk 0:01:11]}  Nd4 {[%clk 0:00:05]} 40. Rb7 {[%clk 0:01:12]}  Rxb7 {[%clk 0:00:05]} 41. axb7 {[%clk 0:01:13]}  Nxb3 {[%clk 0:00:06]} 42. Be3 {[%clk 0:01:14]}  Bb8 {[%clk 0:00:03]} 43. Bb6 {[%clk 0:01:13]}  Nc1+ {[%clk 0:00:02]} 44. Kxc3 {[%clk 0:01:13]}  Ne2+ {[%clk 0:00:02]} 45. Kc4 {[%clk 0:01:12]}  Nxf4 {[%clk 0:00:03]} 46. Kb5 {[%clk 0:01:13]}  Nd5 {[%clk 0:00:03]} 47. Ba5 {[%clk 0:01:12]}  Kf6 {[%clk 0:00:03]} 48. Kc6 {[%clk 0:01:13]}  Ke7 {[%clk 0:00:04]} 49. Bb4+ {[%clk 0:01:13]}  Nxb4+ {[%clk 0:00:03]} 50. Kb5 {[%clk 0:01:13]}  Nd5 {[%clk 0:00:04]} 51. Kc6 {[%clk 0:01:14]}  Kd8 {[%clk 0:00:04]} 52. Kc5 {[%clk 0:01:15]}  Kc7 {[%clk 0:00:04]} 53. Kd4 {[%clk 0:01:16]}  Kxb7 {[%clk 0:00:05]} 54. Ke4 {[%clk 0:01:17]}  Kc6 {[%clk 0:00:06]} 55. h4 {[%clk 0:01:18]}  f5+ {[%clk 0:00:06]} 56. Kf3 {[%clk 0:01:18]}  e5 {[%clk 0:00:07]} 57. h5 {[%clk 0:01:19]}  e4+ {[%clk 0:00:08]} 58. Kg2 {[%clk 0:01:20]}  gxh5 {[%clk 0:00:09]} 59. Kh3 {[%clk 0:01:20]}  Bd6 {[%clk 0:00:09]} 60. Kh4 {[%clk 0:01:21]}  Be7+ {[%clk 0:00:10]} 61. Kh3 {[%clk 0:01:22]}  Bf6 {[%clk 0:00:11]} 62. Kg3 {[%clk 0:01:23]}  Bg5 {[%clk 0:00:11]} 63. Kh3 {[%clk 0:01:23]}  Kd6 {[%clk 0:00:11]} 64. Kg3 {[%clk 0:01:24]}  Ke5 {[%clk 0:00:12]} 65. Kh3 {[%clk 0:01:25]}  Kf4 {[%clk 0:00:12]} 66. Kh2 {[%clk 0:01:26]}  Kf3 {[%clk 0:00:13]} 67. Kg1 {[%clk 0:01:27]}  e3 {[%clk 0:00:13]} 68. Kf1 {[%clk 0:01:28]}  e2+ {[%clk 0:00:13]} 69. Kg1 {[%clk 0:01:29]}  e1=Q+ {[%clk 0:00:13]} 0-1


[Site "https://www.chess.com"]

[Event "Titled Tuesday Blitz November 22 Early 2022"]
[White "Reprintsev, Alexander"]
[Black "Osmak, Yuliia"]
[WhiteFideId "14100541"]
[BlackFideId "14101602"]
[WhiteElo "2230"]
[BlackElo "2328"]
[Result "1-0"]
[Round "11"]
[TimeControl "180+1"]
[Date "2022.11.23"]
[WhiteClock "0:00:05"]
[BlackClock "0:00:01"]

1. e4 {[%clk 0:02:52]}  c5 {[%clk 0:02:58]} 2. b3 {[%clk 0:02:52]}  g6 {[%clk 0:02:56]} 3. Bb2 {[%clk 0:02:51]}  Nf6 {[%clk 0:02:56]} 4. e5 {[%clk 0:02:51]}  Nd5 {[%clk 0:02:56]} 5. Nc3 {[%clk 0:02:47]}  Nxc3 {[%clk 0:02:53]} 6. dxc3 {[%clk 0:02:47]}  Bg7 {[%clk 0:02:54]} 7. Qd5 {[%clk 0:02:43]}  Nc6 {[%clk 0:02:49]} 8. Qxc5 {[%clk 0:02:41]}  Bxe5 {[%clk 0:02:47]} 9. Nf3 {[%clk 0:02:35]}  d6 {[%clk 0:02:45]} 10. Qe3 {[%clk 0:02:34]}  Bg7 {[%clk 0:02:44]} 11. O-O-O {[%clk 0:02:22]}  O-O {[%clk 0:02:43]} 12. Be2 {[%clk 0:02:17]}  a5 {[%clk 0:02:41]} 13. a4 {[%clk 0:02:16]}  Bd7 {[%clk 0:02:26]} 14. h3 {[%clk 0:02:13]}  Na7 {[%clk 0:02:25]} 15. c4 {[%clk 0:02:10]}  Nc6 {[%clk 0:02:18]} 16. Bxg7 {[%clk 0:02:08]}  Kxg7 {[%clk 0:02:19]} 17. Rhe1 {[%clk 0:02:08]}  Nb4 {[%clk 0:02:13]} 18. Kb2 {[%clk 0:02:05]}  Bc6 {[%clk 0:02:13]} 19. c3 {[%clk 0:01:44]}  Na6 {[%clk 0:02:11]} 20. Nd4 {[%clk 0:01:39]}  Nc5 {[%clk 0:02:09]} 21. Bf3 {[%clk 0:01:37]}  Qb6 {[%clk 0:02:07]} 22. Nb5 {[%clk 0:01:22]}  Bxb5 {[%clk 0:02:02]} 23. cxb5 {[%clk 0:01:22]}  e5 {[%clk 0:01:47]} 24. Bd5 {[%clk 0:01:17]}  Rac8 {[%clk 0:01:44]} 25. f4 {[%clk 0:01:16]}  Rfe8 {[%clk 0:01:38]} 26. g4 {[%clk 0:01:07]}  exf4 {[%clk 0:01:12]} 27. Qd4+ {[%clk 0:01:06]}  f6 {[%clk 0:01:06]} 28. Rxe8 {[%clk 0:01:06]}  Rxe8 {[%clk 0:01:05]} 29. Qxf4 {[%clk 0:01:04]}  Re2+ {[%clk 0:01:02]} 30. Ka3 {[%clk 0:01:04]}  Nd7 {[%clk 0:00:57]} 31. Qd4 {[%clk 0:01:00]}  Qc7 {[%clk 0:00:49]} 32. Bc4 {[%clk 0:01:00]}  Ne5 {[%clk 0:00:45]} 33. Bxe2 {[%clk 0:00:54]}  d5 {[%clk 0:00:42]} 34. g5 {[%clk 0:00:48]}  Qd6+ {[%clk 0:00:39]} 35. b4 {[%clk 0:00:46]}  fxg5 {[%clk 0:00:36]} 36. Qxd5 {[%clk 0:00:45]}  axb4+ {[%clk 0:00:35]} 37. cxb4 {[%clk 0:00:44]}  Qf6 {[%clk 0:00:35]} 38. Rf1 {[%clk 0:00:41]}  Qe7 {[%clk 0:00:35]} 39. a5 {[%clk 0:00:35]}  Kh6 {[%clk 0:00:26]} 40. Bc4 {[%clk 0:00:26]}  Nd7 {[%clk 0:00:22]} 41. Bb3 {[%clk 0:00:23]}  Nf6 {[%clk 0:00:21]} 42. Rxf6 {[%clk 0:00:21]}  Qxf6 {[%clk 0:00:21]} 43. Qd1 {[%clk 0:00:11]}  Qc3 {[%clk 0:00:19]} 44. a6 {[%clk 0:00:08]}  bxa6 {[%clk 0:00:19]} 45. bxa6 {[%clk 0:00:09]}  Qc6 {[%clk 0:00:19]} 46. Qe2 {[%clk 0:00:08]}  Qf6 {[%clk 0:00:18]} 47. Ka4 {[%clk 0:00:08]}  Qc6+ {[%clk 0:00:18]} 48. b5 {[%clk 0:00:08]}  Qb6 {[%clk 0:00:18]} 49. Qc4 {[%clk 0:00:06]}  Qg1 {[%clk 0:00:17]} 50. Bc2 {[%clk 0:00:06]}  Qa1+ {[%clk 0:00:16]} 51. Kb4 {[%clk 0:00:06]}  Qb2+ {[%clk 0:00:16]} 52. Kc5 {[%clk 0:00:06]}  Qe5+ {[%clk 0:00:16]} 53. Kb6 {[%clk 0:00:06]}  Qd6+ {[%clk 0:00:16]} 54. Qc6 {[%clk 0:00:06]}  Qd4+ {[%clk 0:00:16]} 55. Kb7 {[%clk 0:00:06]}  Qg7+ {[%clk 0:00:15]} 56. Qc7 {[%clk 0:00:06]}  Qd4 {[%clk 0:00:15]} 57. b6 {[%clk 0:00:07]}  Qd5+ {[%clk 0:00:15]} 58. Ka7 {[%clk 0:00:07]}  Qd4 {[%clk 0:00:14]} 59. Ka8 {[%clk 0:00:07]}  Qd5+ {[%clk 0:00:11]} 60. b7 {[%clk 0:00:06]}  g4 {[%clk 0:00:08]} 61. a7 {[%clk 0:00:06]}  gxh3 {[%clk 0:00:06]} 62. Qc8 {[%clk 0:00:06]}  h2 {[%clk 0:00:05]} 63. Qh3+ {[%clk 0:00:03]}  Kg7 {[%clk 0:00:04]} 64. Qxh2 {[%clk 0:00:03]}  h5 {[%clk 0:00:03]} 65. Qb8 {[%clk 0:00:04]}  h4 {[%clk 0:00:03]} 66. Qc8 {[%clk 0:00:04]}  Kh6 {[%clk 0:00:01]} 67. Bb3 {[%clk 0:00:05]} 1-0


[Site "https://www.chess.com"]

[Event "Titled Tuesday Blitz November 22 Early 2022"]
[White "Sariego Figueredo, Wilfredo"]
[Black "Castillo Pena, Patricia Evarista"]
[WhiteFideId "3500080"]
[BlackFideId "6412106"]
[WhiteElo "2309"]
[BlackElo "1919"]
[Result "1-0"]
[Round "11"]
[TimeControl "180+1"]
[Date "2022.11.23"]
[WhiteClock "0:02:34"]
[BlackClock "0:01:49"]

1. d4 {[%clk 0:03:00]}  d5 {[%clk 0:02:55]} 2. Bf4 {[%clk 0:02:59]}  Nf6 {[%clk 0:02:54]} 3. e3 {[%clk 0:02:59]}  c5 {[%clk 0:02:54]} 4. c3 {[%clk 0:02:59]}  Nc6 {[%clk 0:02:54]} 5. Nf3 {[%clk 0:02:58]}  Qb6 {[%clk 0:02:54]} 6. Qb3 {[%clk 0:02:57]}  c4 {[%clk 0:02:53]} 7. Qxb6 {[%clk 0:02:57]}  axb6 {[%clk 0:02:54]} 8. Na3 {[%clk 0:02:57]}  Nh5 {[%clk 0:02:41]} 9. Bc7 {[%clk 0:02:56]}  Ra6 {[%clk 0:02:32]} 10. Nb5 {[%clk 0:02:53]}  Bg4 {[%clk 0:02:14]} 11. Be2 {[%clk 0:02:44]}  Nf6 {[%clk 0:02:06]} 12. Ne5 {[%clk 0:02:39]}  Bxe2 {[%clk 0:02:01]} 13. Kxe2 {[%clk 0:02:39]}  Nxe5 {[%clk 0:01:59]} 14. Bxe5 {[%clk 0:02:40]}  Ne4 {[%clk 0:01:58]} 15. Nc7+ {[%clk 0:02:39]}  Kd7 {[%clk 0:01:56]} 16. Nxa6 {[%clk 0:02:40]}  bxa6 {[%clk 0:01:56]} 17. f3 {[%clk 0:02:40]}  Nd6 {[%clk 0:01:55]} 18. Bxd6 {[%clk 0:02:38]}  Kxd6 {[%clk 0:01:54]} 19. b3 {[%clk 0:02:38]}  b5 {[%clk 0:01:53]} 20. bxc4 {[%clk 0:02:36]}  dxc4 {[%clk 0:01:49]} 21. a4 {[%clk 0:02:34]} 1-0


[Site "https://www.chess.com"]

[Event "Titled Tuesday Blitz November 22 Early 2022"]
[White "Seletsky, Grigory"]
[Black "Simonovic, Miroslav"]
[WhiteFideId "14112191"]
[BlackFideId "919152"]
[WhiteElo "2492"]
[BlackElo "2043"]
[Result "1-0"]
[Round "11"]
[TimeControl "180+1"]
[Date "2022.11.23"]
[WhiteClock "0:00:06"]
[BlackClock "0:00:01"]

1. e4 {[%clk 0:02:35]}  c5 {[%clk 0:03:00]} 2. Nc3 {[%clk 0:02:33]}  Nc6 {[%clk 0:03:00]} 3. d3 {[%clk 0:02:32]}  e5 {[%clk 0:03:00]} 4. f4 {[%clk 0:02:29]}  exf4 {[%clk 0:02:59]} 5. Bxf4 {[%clk 0:02:28]}  a6 {[%clk 0:02:56]} 6. Nd5 {[%clk 0:02:24]}  d6 {[%clk 0:02:53]} 7. Nf3 {[%clk 0:02:23]}  Be6 {[%clk 0:02:52]} 8. c4 {[%clk 0:02:21]}  g6 {[%clk 0:02:36]} 9. Be2 {[%clk 0:02:20]}  Bg7 {[%clk 0:02:36]} 10. Qd2 {[%clk 0:02:19]}  h6 {[%clk 0:02:27]} 11. O-O {[%clk 0:02:16]}  Nge7 {[%clk 0:02:24]} 12. h4 {[%clk 0:02:08]}  Ne5 {[%clk 0:02:05]} 13. Rab1 {[%clk 0:01:55]}  N7c6 {[%clk 0:01:47]} 14. Nxe5 {[%clk 0:01:47]}  dxe5 {[%clk 0:01:46]} 15. Bg3 {[%clk 0:01:31]}  Nd4 {[%clk 0:01:44]} 16. b4 {[%clk 0:01:25]}  b6 {[%clk 0:01:13]} 17. bxc5 {[%clk 0:01:19]}  bxc5 {[%clk 0:01:14]} 18. h5 {[%clk 0:01:12]}  g5 {[%clk 0:01:11]} 19. Rb7 {[%clk 0:01:05]}  O-O {[%clk 0:01:04]} 20. a4 {[%clk 0:00:41]}  Rb8 {[%clk 0:00:22]} 21. Rfb1 {[%clk 0:00:41]}  Rxb7 {[%clk 0:00:22]} 22. Rxb7 {[%clk 0:00:40]}  Nxe2+ {[%clk 0:00:22]} 23. Qxe2 {[%clk 0:00:39]}  Qa5 {[%clk 0:00:23]} 24. Ne7+ {[%clk 0:00:33]}  Kh8 {[%clk 0:00:22]} 25. Nf5 {[%clk 0:00:33]}  Bxf5 {[%clk 0:00:17]} 26. exf5 {[%clk 0:00:33]}  Qxa4 {[%clk 0:00:12]} 27. Bxe5 {[%clk 0:00:18]}  Re8 {[%clk 0:00:13]} 28. f6 {[%clk 0:00:18]}  Bxf6 {[%clk 0:00:12]} 29. Bxf6+ {[%clk 0:00:18]}  Kg8 {[%clk 0:00:12]} 30. Qxe8+ {[%clk 0:00:18]}  Qxe8 {[%clk 0:00:11]} 31. Kf2 {[%clk 0:00:17]}  a5 {[%clk 0:00:03]} 32. Ra7 {[%clk 0:00:10]}  Qc8 {[%clk 0:00:03]} 33. g4 {[%clk 0:00:07]}  a4 {[%clk 0:00:01]} 34. Rxa4 {[%clk 0:00:06]} 1-0


[Site "https://www.chess.com"]

[Event "Titled Tuesday Blitz November 22 Early 2022"]
[White "Shapiro, Daniel"]
[Black "Goriatchkin, Jouri"]
[WhiteFideId "2001780"]
[BlackFideId "4120183"]
[WhiteElo "2305"]
[BlackElo "1923"]
[Result "1-0"]
[Round "11"]
[TimeControl "180+1"]
[Date "2022.11.23"]
[WhiteClock "0:00:33"]
[BlackClock "0:00:01"]

1. d4 {[%clk 0:03:00]}  d5 {[%clk 0:02:59]} 2. c4 {[%clk 0:03:00]}  dxc4 {[%clk 0:02:57]} 3. e4 {[%clk 0:02:59]}  Nf6 {[%clk 0:02:56]} 4. e5 {[%clk 0:02:58]}  Nd5 {[%clk 0:02:56]} 5. Bxc4 {[%clk 0:02:58]}  Nb6 {[%clk 0:02:57]} 6. Bd3 {[%clk 0:02:56]}  Nc6 {[%clk 0:02:51]} 7. Ne2 {[%clk 0:02:55]}  Bg4 {[%clk 0:02:45]} 8. Be3 {[%clk 0:02:44]}  e6 {[%clk 0:02:41]} 9. a3 {[%clk 0:02:39]}  Ne7 {[%clk 0:02:27]} 10. Nbc3 {[%clk 0:02:35]}  c6 {[%clk 0:02:27]} 11. f3 {[%clk 0:02:23]}  Bh5 {[%clk 0:02:23]} 12. Ng3 {[%clk 0:02:13]}  Bg6 {[%clk 0:02:23]} 13. O-O {[%clk 0:02:09]}  Bxd3 {[%clk 0:02:21]} 14. Qxd3 {[%clk 0:02:09]}  Ned5 {[%clk 0:02:21]} 15. Bf2 {[%clk 0:02:02]}  Be7 {[%clk 0:02:17]} 16. Nge4 {[%clk 0:02:02]}  O-O {[%clk 0:02:10]} 17. Rad1 {[%clk 0:01:52]}  Qc7 {[%clk 0:02:05]} 18. g3 {[%clk 0:01:51]}  Rfd8 {[%clk 0:02:02]} 19. f4 {[%clk 0:01:50]}  Nxc3 {[%clk 0:01:59]} 20. bxc3 {[%clk 0:01:46]}  Bxa3 {[%clk 0:01:58]} 21. Ng5 {[%clk 0:01:40]}  g6 {[%clk 0:01:56]} 22. g4 {[%clk 0:01:33]}  c5 {[%clk 0:01:53]} 23. Qh3 {[%clk 0:01:32]}  f5 {[%clk 0:01:47]} 24. Nxe6 {[%clk 0:01:29]}  Qf7 {[%clk 0:00:54]} 25. Nxd8 {[%clk 0:01:27]}  Rxd8 {[%clk 0:00:55]} 26. gxf5 {[%clk 0:01:27]}  cxd4 {[%clk 0:00:42]} 27. cxd4 {[%clk 0:01:16]}  gxf5 {[%clk 0:00:40]} 28. Bh4 {[%clk 0:01:13]}  Be7 {[%clk 0:00:32]} 29. Bxe7 {[%clk 0:01:09]}  Qxe7 {[%clk 0:00:28]} 30. Qxf5 {[%clk 0:01:09]}  Nd5 {[%clk 0:00:16]} 31. Rd3 {[%clk 0:00:56]}  Kh8 {[%clk 0:00:14]} 32. Rg3 {[%clk 0:00:47]}  Rf8 {[%clk 0:00:14]} 33. Qg4 {[%clk 0:00:39]}  b5 {[%clk 0:00:14]} 34. Rf2 {[%clk 0:00:39]}  Qf7 {[%clk 0:00:07]} 35. f5 {[%clk 0:00:38]}  b4 {[%clk 0:00:05]} 36. f6 {[%clk 0:00:34]}  Re8 {[%clk 0:00:04]} 37. Rfg2 {[%clk 0:00:32]}  a5 {[%clk 0:00:01]} 38. e6 {[%clk 0:00:33]} 1-0


[Site "https://www.chess.com"]

[Event "Titled Tuesday Blitz November 22 Early 2022"]
[White "Skibbe, Willi"]
[Black "Winkels, Marcel"]
[WhiteFideId "4682190"]
[BlackFideId "1003887"]
[WhiteElo "2357"]
[BlackElo "1900"]
[Result "1-0"]
[Round "11"]
[TimeControl "180+1"]
[Date "2022.11.23"]
[WhiteClock "0:00:58"]
[BlackClock "0:00:54"]

1. f4 {[%clk 0:03:00]}  c5 {[%clk 0:02:58]} 2. Nf3 {[%clk 0:03:00]}  Nc6 {[%clk 0:02:56]} 3. g3 {[%clk 0:03:00]}  d5 {[%clk 0:02:55]} 4. Bg2 {[%clk 0:03:01]}  Nf6 {[%clk 0:02:52]} 5. O-O {[%clk 0:03:00]}  g6 {[%clk 0:02:51]} 6. d3 {[%clk 0:03:00]}  Bg7 {[%clk 0:02:51]} 7. c3 {[%clk 0:03:01]}  O-O {[%clk 0:02:51]} 8. Na3 {[%clk 0:03:00]}  Bg4 {[%clk 0:02:41]} 9. Ne5 {[%clk 0:02:50]}  Nxe5 {[%clk 0:02:37]} 10. fxe5 {[%clk 0:02:50]}  Ne8 {[%clk 0:02:37]} 11. d4 {[%clk 0:02:49]}  c4 {[%clk 0:02:33]} 12. h3 {[%clk 0:02:44]}  Bf5 {[%clk 0:02:29]} 13. g4 {[%clk 0:02:41]}  Be6 {[%clk 0:02:28]} 14. e4 {[%clk 0:02:38]}  Nc7 {[%clk 0:02:25]} 15. Bg5 {[%clk 0:02:33]}  Re8 {[%clk 0:02:17]} 16. Qd2 {[%clk 0:02:31]}  b5 {[%clk 0:02:15]} 17. Nc2 {[%clk 0:02:31]}  dxe4 {[%clk 0:02:05]} 18. Bxe4 {[%clk 0:02:30]}  Bd5 {[%clk 0:02:05]} 19. Bxd5 {[%clk 0:02:21]}  Qxd5 {[%clk 0:02:04]} 20. a3 {[%clk 0:02:16]}  Ne6 {[%clk 0:02:02]} 21. Be3 {[%clk 0:02:13]}  a5 {[%clk 0:01:56]} 22. Qg2 {[%clk 0:02:12]}  Red8 {[%clk 0:01:53]} 23. Qxd5 {[%clk 0:02:05]}  Rxd5 {[%clk 0:01:52]} 24. Kg2 {[%clk 0:01:56]}  Rad8 {[%clk 0:01:47]} 25. a4 {[%clk 0:01:49]}  Rb8 {[%clk 0:01:39]} 26. Rfb1 {[%clk 0:01:38]}  b4 {[%clk 0:01:36]} 27. Bd2 {[%clk 0:01:08]}  bxc3 {[%clk 0:01:30]} 28. bxc3 {[%clk 0:01:05]}  Rb3 {[%clk 0:01:28]} 29. Ne3 {[%clk 0:01:03]}  Rd8 {[%clk 0:01:24]} 30. Nxc4 {[%clk 0:01:02]}  Rxb1 {[%clk 0:00:55]} 31. Rxb1 {[%clk 0:01:01]}  Nxd4 {[%clk 0:00:55]} 32. cxd4 {[%clk 0:00:58]}  Rxd4 {[%clk 0:00:54]} 33. Rb8+ {[%clk 0:00:58]}  Bf8 {[%clk 0:00:54]} 34. Bh6 {[%clk 0:00:58]} 1-0


[Site "https://www.chess.com"]